bitfinex-derivatives/quotes_SOLF0:USTF0_20250319
["timestamp","ask_amount","ask_price","bid_price","bid_amount"]
[1742411806670,23.84736856,133.17,133.1,7.5119]
[1742411806871,23.84736856,133.17,133.09,35.0]
[1742411807067,0.05583419,133.15,133.09,35.0]
[1742411807264,0.05583419,133.15,133.11,7.5113]
[1742411807469,7.56563419,133.15,133.09,35.0]
[1742411807670,0.05583419,133.15,133.09,35.0]
[1742411807873,0.05583419,133.15,133.1,5.86489953]
[1742411808072,0.05583419,133.15,133.11,5.86489953]
[1742411808275,0.05583419,133.15,133.11,4.2017]
[1742411808568,35.0,133.19,133.12,10.06889371]
[1742411808870,35.0,133.19,133.13,40.86909898]
[1742411809065,35.0,133.19,133.12,4.2047]
[1742411809266,35.0,133.19,133.11,4.2017]
[1742411809468,23.84736856,133.17,133.11,7.5113]
[1742411809667,23.84736856,133.17,133.14,0.05006596]
[1742411809668,0.0495684,133.16,133.14,0.05006596]
[1742411809866,34.98,133.15,133.08,8.0095]
[1742411810065,7.5106,133.13,133.07,7.5139]
[1742411810468,23.84736856,133.14,133.05,8.0095]
[1742411810767,23.84736856,133.14,133.06,5.8785956]
[1742411810959,23.84736856,133.14,133.05,8.0095]
[1742411810960,0.04981465,133.11,133.05,8.0095]
[1742411812165,58.87718321,133.11,133.0,108.75142652]
[1742411812370,23.84736856,133.08,133.01,14.11307864]
[1742411812569,35.02972102,133.07,133.01,8.2283]
[1742411813467,7.5148,133.06,133.01,8.2283]
[1742411813977,7.5149,133.06,133.01,15.7453]
[1742411814171,35.02972102,133.07,133.0,108.75142652]
[1742411814474,23.84736856,133.05,133.0,108.75142652]
[1742411814678,23.89572453,133.05,133.0,108.75142652]
[1742411815172,31.41122453,133.05,133.0,108.75142652]
[1742411815373,23.89572453,133.05,133.0,108.75142652]
[1742411815566,23.89572453,133.05,132.96,39.1561]
[1742411815775,23.84736856,133.05,132.97,5.88523177]
[1742411815974,23.84736856,133.05,132.96,39.1561]
[1742411815975,0.04812194,133.02,132.96,39.1561]
[1742411816175,0.04812194,133.02,132.97,5.88526937]
[1742411816470,0.04812194,133.02,133.01,7.5173]
[1742411817974,0.04812194,133.02,132.97,4.1451]
[1742411818277,0.04812194,133.02,132.98,5.87818061]
[1742411818568,0.04812194,133.02,132.99,5.87818061]
[1742411818774,0.04812194,133.02,132.97,4.1451]
[1742411818974,0.04812194,133.02,132.98,5.87465028]
[1742411819173,0.04812194,133.02,132.97,4.1451]
[1742411819364,0.04812194,133.02,132.98,5.87379077]
[1742411819569,0.04812194,133.02,132.97,4.1451]
[1742411819773,0.04812194,133.02,132.99,7.5184]
[1742411819973,58.8954905,133.02,132.89,225.24]
[1742411820174,58.84736856,133.02,132.93,3.8942]
[1742411820370,0.05194392,132.99,132.95,7.5202]
[1742411821083,0.05194392,132.99,132.96,7.5201]
[1742411821284,0.05194392,132.99,132.93,3.8942]
[1742411821479,0.05194392,132.99,132.95,5.87706178]
[1742411821776,0.05194392,132.99,132.93,3.8942]
[1742411821976,0.05194392,132.99,132.94,5.87254485]
[1742411822178,0.05194392,132.99,132.95,7.5204]
[1742411822376,0.05194392,132.99,132.93,7.8469]
[1742411822673,0.05194392,132.99,132.97,7.5192]
[1742411822882,0.05194392,132.99,132.97,34.98]
[1742411823077,0.05194392,132.99,132.94,34.98]
[1742411823276,0.05194392,132.99,132.94,42.501]
[1742411823673,7.5193,132.98,132.94,34.98]
[1742411823873,0.05194392,132.99,132.93,15.3684]
[1742411825083,225.51194392,132.99,132.9,39.193]
[1742411825273,225.46,132.99,132.91,8.4198]
[1742411825469,0.05153707,132.96,132.91,8.4198]
[1742411825975,0.05153707,132.96,132.91,32.26716856]
[1742411826178,225.46,132.99,132.91,32.26716856]
[1742411826375,393.04786856,133.05,132.92,5.85635011]
[1742411826376,34.98,133.04,132.92,5.85635011]
[1742411826588,7.5182,133.0,132.91,32.26716856]
[1742411826776,34.98,133.03,132.92,5.85094822]
[1742411826977,34.98,133.03,132.91,32.26716856]
[1742411827172,42.4964,133.03,132.99,7.518]
[1742411827374,0.05324599,133.02,132.96,34.98]
[1742411827579,0.05324599,133.02,132.96,42.4998]
[1742411827880,0.05324599,133.02,132.98,0.05357082]
[1742411828083,7.5184,132.99,132.98,0.05357082]
[1742411828280,58.82736856,132.99,132.91,8.4198]
[1742411828877,34.98,132.99,132.91,8.4198]
[1742411829276,0.05108918,132.96,132.91,8.4198]
[1742411829687,0.05108918,132.96,132.95,7.5207]
[1742411830186,34.98,133.02,132.94,23.84736856]
[1742411830389,288.52786856,133.05,132.94,23.89911922]
[1742411830580,253.54786856,133.05,132.94,23.84736856]
[1742411830777,261.06326856,133.05,133.02,7.5164]
[1742411830986,225.5,133.05,132.98,34.98]
[1742411831480,23.84736856,133.0,132.86,359.0]
[1742411831680,23.84736856,133.0,132.91,3.9819]
[1742411831877,365.0,133.04,132.92,64.66985278]
[1742411832081,260.48,133.05,132.92,58.82736856]
[1742411832273,260.48,133.05,132.93,3.9244]
[1742411832478,260.48,133.05,132.96,7.5198]
[1742411832479,7.5173,133.01,132.96,7.5198]
[1742411832680,0.05736997,133.0,132.96,34.96]
[1742411833086,23.90473853,133.0,132.91,3.9819]
[1742411833282,23.84736856,133.0,132.91,3.9819]
[1742411833588,7.521,132.95,132.89,34.96]
[1742411833885,23.84736856,132.97,132.89,34.96]
[1742411834088,23.84736856,132.97,132.89,42.4836]
[1742411834089,0.04885151,132.93,132.89,42.4836]
[1742411834389,0.04885151,132.93,132.89,34.96]
[1742411834590,0.04885151,132.93,132.9,7.5231]
[1742411834789,0.04885151,132.93,132.89,34.96]
[1742411834981,0.04885151,132.93,132.88,39.08]
[1742411835384,0.04885151,132.93,132.87,3.9244]
[1742411835989,0.04885151,132.93,132.84,8.2944]
[1742411836187,0.04885151,132.93,132.85,4.1308]
[1742411836384,0.05095502,132.9,132.85,4.1308]
[1742411836583,0.05095502,132.9,132.83,39.63405631]
[1742411836891,7.57475502,132.9,132.83,39.63405631]
[1742411837080,260.52,132.89,132.83,39.63405631]
[1742411837283,264.5687,132.89,132.83,39.63405631]
[1742411837691,0.04947419,132.87,132.83,39.63405631]
[1742411838991,0.04947419,132.87,132.82,79.02205497]
[1742411839289,39.04199161,132.87,132.81,7.5283]
[1742411839591,39.04199161,132.87,132.8,47.0954]
[1742411839891,0.04947419,132.87,132.8,47.0954]
[1742411840889,0.04947419,132.87,132.84,7.5269]
[1742411841088,0.04947419,132.87,132.84,34.98]
[1742411841287,0.04947419,132.87,132.85,7.5259]
[1742411841993,0.04947419,132.87,132.86,7.5258]
[1742411842296,38.99251742,132.93,132.84,34.98]
[1742411842794,3.9095,132.94,132.84,34.98]
[1742411843087,7.5222,132.93,132.87,7.5248]
[1742411843292,46.51471742,132.93,132.84,34.98]
[1742411843494,0.0560682,132.91,132.89,0.04947419]
[1742411844294,0.0560682,132.91,132.9,7.5235]
[1742411844492,74.23247742,133.0,132.89,0.04947419]
[1742411844688,74.23247742,133.0,132.89,8.3784]
[1742411844883,74.23247742,133.0,132.95,7.5203]
[1742411845088,74.23247742,133.0,132.92,34.96]
[1742411845284,35.23996,133.0,132.92,34.96]
[1742411845690,0.05657875,132.97,132.95,0.05600776]
[1742411845884,0.05657875,132.97,132.96,7.5201]
[1742411846587,0.05657875,132.97,132.95,0.05600776]
[1742411848592,0.27996,133.0,132.96,34.94]
[1742411848791,0.27996,133.0,132.96,39.1437]
[1742411848992,0.27996,133.0,132.99,7.5184]
[1742411849194,0.27996,133.0,132.96,39.1437]
[1742411849894,0.04847074,132.99,132.97,0.05067692]
[1742411850698,38.99251742,132.98,132.92,4.0806]
[1742411850889,38.99251742,132.98,132.9,4.2037]
[1742411851090,38.99251742,132.95,132.91,5.90277297]
[1742411851291,38.99251742,132.92,132.88,7.5244]
[1742411851491,38.99251742,132.92,132.89,5.91237052]
[1742411851792,38.99251742,132.92,132.9,7.5234]
[1742411851992,39.04301131,132.92,132.9,7.5234]
[1742411852192,39.04301131,132.92,132.89,0.05710781]
[1742411853499,7.5229,132.91,132.89,0.05710781]
[1742411853899,39.04301131,132.92,132.89,0.05710781]
[1742411854799,0.05049389,132.92,132.89,0.05710781]
[1742411856793,0.05049389,132.92,132.9,5.93674406]
[1742411857093,0.05049389,132.92,132.91,13.45964406]
[1742411857297,38.99251742,132.98,132.91,5.93674406]
[1742411857489,7.5197,132.97,132.95,7.5207]
[1742411857694,38.99251742,132.98,132.9,12.0599]
[1742411857900,38.99251742,132.98,132.91,5.93746523]
[1742411858098,7.5205,132.96,132.92,5.93746523]
[1742411858291,38.99251742,132.98,132.93,5.98520352]
[1742411858496,7.5212,132.94,132.93,0.04773829]
[1742411858704,39.05002924,132.95,132.93,0.04773829]
[1742411859697,46.57082924,132.95,132.93,0.04773829]
[1742411859993,39.05002924,132.95,132.93,0.04773829]
[1742411860895,39.05002924,132.95,132.86,8.001]
[1742411860896,81.49002924,132.95,132.86,8.001]
[1742411861093,81.49002924,132.95,132.87,5.95096844]
[1742411861094,38.99251742,132.92,132.87,5.95096844]
[1742411861294,38.99251742,132.92,132.86,8.001]
[1742411861495,55.66651358,132.92,132.86,8.001]
[1742411861996,0.05105004,132.9,132.88,0.04763298]
[1742411862195,90.58651358,132.95,132.88,0.04763298]
[1742411862389,90.58651358,132.95,132.92,7.5221]
[1742411862595,90.63760829,132.95,132.92,7.5221]
[1742411862795,90.63760829,132.95,132.92,0.05479003]
[1742411863500,90.63760829,132.95,132.92,7.57689003]
[1742411865304,90.63760829,132.95,132.93,7.5215]
[1742411865900,90.63760829,132.95,132.92,7.57709003]
[1742411866100,90.63760829,132.95,132.92,0.05479003]
[1742411867506,0.05109471,132.95,132.92,0.05479003]
[1742411867904,0.05109471,132.95,132.94,7.5212]
[1742411868607,0.05109471,132.95,132.92,0.05479003]
[1742411869405,7.5217,132.94,132.92,0.05479003]
[1742411869606,0.05109471,132.95,132.92,7.57709003]
[1742411869908,0.05109471,132.95,132.92,0.05479003]
[1742411870107,0.05109471,132.95,132.92,7.57699003]
[1742411870309,0.05109471,132.95,132.92,0.05479003]
[1742411870704,7.5216,132.94,132.92,0.05479003]
[1742411870903,34.23549806,132.94,132.92,0.05479003]
[1742411872408,7.5218,132.93,132.92,0.05479003]
[1742411873508,41.75699806,132.94,132.92,0.05479003]
[1742411873908,0.05109471,132.95,132.92,0.05479003]
[1742411874311,7.57209471,132.95,132.92,7.57689003]
[1742411875212,7.5218,132.93,132.92,0.05479003]
[1742411875509,34.23549806,132.94,132.87,34.88]
[1742411875705,7.5235,132.9,132.87,34.88]
[1742411875906,7.5235,132.9,132.86,8.001]
[1742411876308,7.5235,132.9,132.86,15.5265]
[1742411876512,0.05140379,132.89,132.87,0.04986274]
[1742411877515,34.28690185,132.89,132.87,0.04986274]
[1742411878215,7.5246,132.88,132.87,0.04986274]
[1742411878714,34.28690185,132.89,132.87,0.04986274]
[1742411878913,7.5246,132.88,132.87,0.04986274]
[1742411879216,34.28690185,132.89,132.87,0.04986274]
[1742411879616,7.5246,132.88,132.87,0.04986274]
[1742411881015,0.05140379,132.89,132.87,0.04986274]
[1742411881613,7.5246,132.88,132.87,0.04986274]
[1742411881822,0.05140379,132.89,132.87,0.04986274]
[1742411882015,7.5246,132.88,132.87,0.04986274]
[1742411882607,7.5278,132.83,132.77,17.61922511]
[1742411882820,34.23549806,132.85,132.77,46.9219]
[1742411883112,7.5273,132.84,132.8,7.5291]
[1742411883319,34.23549806,132.85,132.8,7.5291]
[1742411883820,0.05315353,132.84,132.77,46.9219]
[1742411884419,225.7,132.91,132.78,34.23549806]
[1742411884719,7.5247,132.88,132.84,7.5264]
[1742411884911,34.23549806,132.89,132.82,34.86]
[1742411885319,7.5249,132.88,132.82,34.86]
[1742411885615,0.04757765,132.86,132.84,0.05631333]
[1742411886417,0.04757765,132.86,132.85,7.5263]
[1742411887313,225.7,132.91,132.88,7.5243]
[1742411888015,225.7,132.91,132.83,4.2196]
[1742411888321,34.23549806,132.9,132.83,4.2196]
[1742411888622,34.23549806,132.87,132.8,34.84]
[1742411888919,7.5275,132.83,132.79,7.5295]
[1742411889516,7.5281,132.82,132.79,7.5295]
[1742411889822,7.58576324,132.82,132.8,0.05136798]
[1742411890324,0.05766324,132.82,132.8,0.05136798]
[1742411891111,0.05766324,132.82,132.81,7.5286]
[1742411891819,0.05766324,132.82,132.8,0.05136798]
[1742411892214,259.93549806,132.91,132.81,34.84]
[1742411892419,259.93549806,132.91,132.82,8.1759]
[1742411892617,0.27573,132.96,132.83,34.23549806]
[1742411892818,34.51122806,132.96,132.83,34.23549806]
[1742411893215,0.05093495,132.91,132.84,34.84]
[1742411893416,0.05093495,132.91,132.88,0.05228464]
[1742411893915,0.05093495,132.91,132.9,7.5235]
[1742411895421,35.11573,132.96,132.94,7.5212]
[1742411895723,0.27573,132.96,132.89,4.1165]
[1742411895923,0.27573,132.96,132.91,7.5226]
[1742411896125,34.51122806,132.96,132.88,34.82]
[1742411896418,0.27573,132.96,132.88,34.82]
[1742411896620,0.05135918,132.93,132.91,0.0479026]
[1742411897021,0.05135918,132.93,132.92,7.5221]
[1742411897329,0.27573,132.96,132.92,34.82]
[1742411897523,0.27573,132.96,132.95,7.5207]
[1742411897826,34.82,133.02,132.93,3.895]
[1742411898014,225.76,133.03,132.93,3.895]
[1742411898216,225.76,133.03,132.94,34.23549806]
[1742411898422,0.056568,132.99,132.97,0.05427423]
[1742411898623,225.76,133.03,132.98,34.82]
[1742411899125,225.76,133.03,133.0,7.5175]
[1742411899426,8.3811,133.07,132.98,34.82]
[1742411899627,8.3811,133.07,132.99,7.5183]
[1742411899819,0.05225133,133.04,133.01,0.04877559]
[1742411900622,0.05225133,133.04,133.02,34.8]
[1742411901218,225.76,133.09,133.05,7.515]
[1742411901423,225.76,133.09,133.02,34.8]
[1742411901928,83.01015828,133.18,133.02,34.8]
[1742411901929,226.98802481,133.15,133.03,34.23549806]
[1742411902123,7.9678,133.17,133.06,34.23549806]
[1742411902327,87.28355828,133.18,133.09,34.23549806]
[1742411902527,0.05288499,133.13,133.1,34.84901391]
[1742411902722,0.05288499,133.13,133.1,0.04901391]
[1742411902926,0.05288499,133.13,133.07,39.0203]
[1742411903229,0.05288499,133.13,133.1,0.04827988]
[1742411904028,7.5111,133.12,133.1,0.04827988]
[1742411904420,0.05288499,133.13,133.1,0.04827988]
[1742411904621,7.5115,133.12,133.1,0.04827988]
[1742411904817,55.55053471,133.13,133.1,0.04827988]
[1742411905129,0.05288499,133.13,133.1,0.04827988]
[1742411905631,15.8257,133.2,133.1,55.5459296]
[1742411905825,225.68,133.21,133.1,55.5459296]
[1742411906018,233.1862,133.21,133.1,55.49764972]
[1742411906422,233.1862,133.21,133.11,3.8976]
[1742411906619,225.68,133.21,133.12,34.76]
[1742411906821,0.05395175,133.17,133.15,0.04799993]
[1742411907830,0.05395175,133.17,133.16,34.76]
[1742411909731,0.05395175,133.17,133.15,0.04799993]
[1742411911330,7.5088,133.16,133.15,0.04799993]
[1742411911629,27.77210314,133.17,133.1,34.74]
[1742411912029,27.71182962,133.16,133.1,34.74]
[1742411912226,62.43182962,133.16,133.07,34.72]
[1742411912530,27.71815139,133.14,133.06,38.7269]
[1742411912727,0.05569662,133.13,133.1,0.05529967]
[1742411912929,34.72,133.12,133.1,0.05529967]
[1742411913125,7.5116,133.11,133.1,0.05529967]
[1742411913734,27.71815139,133.11,133.03,34.72]
[1742411914332,27.71182962,133.1,133.03,34.72]
[1742411914637,27.71182962,133.1,133.01,7.9411]
[1742411914838,31.85062962,133.1,133.01,7.9411]
[1742411915030,0.05134204,133.07,133.04,0.05295314]
[1742411915539,7.515,133.05,133.04,0.05295314]
[1742411915932,27.76317166,133.07,132.98,3.9771]
[1742411916328,27.71182962,133.07,132.98,3.9771]
[1742411917032,27.71182962,133.07,133.01,0.05503755]
[1742411917235,0.05390817,133.04,133.01,0.05503755]
[1742411918328,0.05390817,133.04,133.01,34.77503755]
[1742411918534,0.05390817,133.04,133.02,7.5163]
[1742411918739,0.05390817,133.04,133.01,34.77503755]
[1742411918938,0.05390817,133.04,133.02,4.0119]
[1742411919844,38.7117,133.11,133.02,59.44188101]
[1742411920139,42.2312,133.12,133.02,59.44188101]
[1742411920340,69.06955834,133.17,133.05,55.42998101]
[1742411920643,4.1384,133.17,133.08,55.42998101]
[1742411920834,260.14,133.19,133.09,38.7119]
[1742411921035,7.56683285,133.14,133.11,0.05430377]
[1742411921338,0.05693285,133.14,133.09,38.7119]
[1742411921537,7.56693285,133.14,133.11,0.05465487]
[1742411921738,0.05693285,133.14,133.11,0.05465487]
[1742411922739,7.5109,133.13,133.11,0.05465487]
[1742411923330,42.26703285,133.14,133.11,0.05465487]
[1742411924036,34.75693285,133.14,133.11,0.05465487]
[1742411924236,0.05693285,133.14,133.11,0.05465487]
[1742411929440,7.5108,133.13,133.11,0.05465487]
[1742411929844,34.68,133.12,133.11,0.05465487]
[1742411930140,34.68,133.12,133.04,4.2614]
[1742411930141,42.1911,133.12,133.06,7.5144]
[1742411930542,34.68,133.12,133.04,38.9414]
[1742411930745,90.10998101,133.12,133.04,4.2614]
[1742411931043,55.42998101,133.09,132.99,78.22635631]
[1742411931546,0.05268918,133.05,133.03,0.05133342]
[1742411932647,0.05268918,133.05,133.03,7.56713342]
[1742411932846,0.05268918,133.05,133.03,0.05133342]
[1742411933248,0.05268918,133.05,133.04,7.5156]
[1742411933748,8.918e-05,133.05,133.04,15.0356]
[1742411933952,34.66,133.14,133.04,7.52]
[1742411934160,8.092,133.16,133.06,55.42998101]
[1742411934458,15.601,133.16,133.07,38.9429]
[1742411934761,8.092,133.16,133.07,38.9429]
[1742411934958,0.05646449,133.13,133.1,0.05056665]
[1742411935559,90.08998101,133.12,133.03,34.66]
[1742411936862,55.48427928,133.09,133.06,0.05370808]
[1742411937158,110.85996202,133.07,132.98,39.63405631]
[1742411937352,55.42998101,133.03,132.98,39.63405631]
[1742411937550,7.5179,133.0,132.98,39.63405631]
[1742411937749,55.42998101,133.0,132.98,39.63405631]
[1742411938058,280.84998101,133.0,132.97,47.88474747]
[1742411938263,280.90455586,133.0,132.97,41.45904747]
[1742411938455,280.90455586,133.0,132.97,41.51507203]
[1742411939662,280.90455586,133.0,132.89,8.2384]
[1742411939860,55.42998101,132.97,132.89,8.2384]
[1742411940059,34.66,132.96,132.89,8.2384]
[1742411941062,0.05393685,132.94,132.91,0.05405382]
[1742411941251,0.05393685,132.94,132.93,7.5218]
[1742411941456,0.05393685,132.94,132.91,0.05405382]
[1742411942169,225.42,133.0,132.91,34.71405382]
[1742411942359,225.42,133.0,132.91,34.66]
[1742411943068,225.56,133.07,132.96,55.42998101]
[1742411943266,225.56,133.07,132.97,42.7505]
[1742411943460,225.56,133.07,132.99,55.42998101]
[1742411943662,216.56310821,133.11,133.05,55.42998101]
[1742411943971,197.27970821,133.11,133.1,7.5122]
[1742411944169,197.27970821,133.11,133.1,42.1722]
[1742411944760,48.33850822,133.11,133.1,42.1722]
[1742411944963,8.22e-06,133.11,133.1,42.1722]
[1742411945670,8.22e-06,133.11,133.09,34.7147995]
[1742411945965,254.8281766,133.12,133.09,34.7147995]
[1742411945966,0.05029389,133.12,133.09,62.42662912]
[1742411946166,0.05029389,133.12,133.11,7.5116]
[1742411947064,9.389e-05,133.12,133.11,7.5116]
[1742411948163,3.9633,133.2,133.11,7.52]
[1742411948363,3.9633,133.2,133.15,55.42998101]
[1742411948662,3.9633,133.2,133.16,34.64]
[1742411949366,0.04977878,133.19,133.17,0.05523894]
[1742411950163,0.04977878,133.19,133.15,34.64]
[1742411950473,34.64,133.18,133.09,93.13011835]
[1742411950774,55.42998101,133.16,133.09,37.70013734]
[1742411951359,0.05747865,133.14,133.11,0.04974362]
[1742411953865,34.67747865,133.14,133.11,0.04974362]
[1742411954065,7.5111,133.12,133.08,34.64]
[1742411954268,34.67747865,133.14,133.04,34.62]
[1742411954468,4.0402,133.11,133.04,34.62]
[1742411954768,7.5126,133.1,133.04,34.62]
[1742411954969,4.0402,133.11,133.0,55.42998101]
[1742411955274,0.04969451,133.07,133.05,0.05103706]
[1742411958275,7.56369451,133.07,133.05,0.05103706]
[1742411958574,0.04969451,133.07,133.05,0.05103706]
[1742411959578,0.04969451,133.07,133.06,7.5145]
[1742411959771,4.2298,133.16,133.05,63.00101807]
[1742411959972,4.2298,133.16,133.09,55.42998101]
[1742411960173,4.2298,133.16,133.1,34.6]
[1742411960367,4.2298,133.16,133.07,34.6]
[1742411960677,7.5099,133.15,133.09,55.42998101]
[1742411960882,0.04942895,133.13,133.1,0.0575564]
[1742411961776,34.64942895,133.13,133.04,34.6]
[1742411961976,7.5124,133.1,133.06,7.5143]
[1742411962180,7.5124,133.1,133.04,34.6]
[1742411962377,34.6,133.13,133.04,34.6]
[1742411962579,7.5131,133.09,133.04,7.5153]
[1742411962880,0.04741971,133.08,133.05,0.0518963]
[1742411963079,0.04741971,133.08,133.05,7.515]
[1742411963267,0.04741971,133.08,133.05,7.57239883]
[1742411963469,0.04741971,133.08,133.05,0.05739883]
[1742411963672,0.04741971,133.08,133.05,7.57209883]
[1742411963873,0.04741971,133.08,133.05,0.05739883]
[1742411964876,0.04741971,133.08,133.07,7.5139]
[1742411965077,4.2298,133.16,133.09,55.42998101]
[1742411965381,7.5057,133.22,133.16,7.5083]
[1742411965580,260.0,133.24,133.15,90.02998101]
[1742411965975,260.0,133.24,133.12,90.02998101]
[1742411966176,0.05224036,133.21,133.09,90.00998101]
[1742411966382,55.42998101,133.19,133.09,90.00998101]
[1742411966576,42.9815,133.18,133.08,107.53749216]
[1742411967081,4.258,133.17,133.1,7.5119]
[1742411967271,4.258,133.17,133.09,55.42998101]
[1742411967478,0.05702191,133.15,133.12,0.05555174]
[1742411970371,7.56652191,133.15,133.12,0.05555174]
[1742411970678,0.05702191,133.15,133.12,0.05555174]
[1742411970987,0.05702191,133.15,133.13,7.5101]
[1742411971280,0.05702191,133.15,133.12,0.05555174]
[1742411971473,0.05702191,133.15,133.13,7.5101]
[1742411972383,0.05702191,133.15,133.12,34.61555174]
[1742411973172,0.05702191,133.15,133.14,55.42998101]
[1742411973373,0.05702191,133.15,133.14,62.93988101]
[1742411973579,12.1748,133.23,133.14,55.42998101]
[1742411974074,7.506,133.22,133.17,7.5082]
[1742411974274,12.1748,133.23,133.17,34.56]
[1742411974475,1.30679685,133.27,133.2,55.42998101]
[1742411974678,34.56,133.29,133.21,34.56]
[1742411974877,0.05246104,133.25,133.22,0.04798004]
[1742411976179,0.05246104,133.25,133.23,7.5049]
[1742411976383,0.05246104,133.25,133.22,0.04798004]
[1742411976786,0.05246104,133.25,133.23,7.5046]
[1742411977179,0.05246104,133.25,133.22,0.04798004]
[1742411977475,0.05246104,133.25,133.24,7.5043]
[1742411977674,0.05246104,133.25,133.22,0.04798004]
[1742411978282,0.05246104,133.25,133.23,7.5045]
[1742411978685,0.05246104,133.25,133.22,0.04798004]
[1742411979184,0.05246104,133.25,133.24,7.5043]
[1742411979374,0.05246104,133.25,133.24,62.93428101]
[1742411979580,46.6948,133.34,133.24,55.42998101]
[1742411979780,46.6948,133.34,133.27,7.5022]
[1742411980485,46.6948,133.34,133.25,34.52]
[1742411980680,55.42998101,133.33,133.22,34.52]
[1742411980987,7.5017,133.29,133.28,0.05702706]
[1742411981189,7.5017,133.29,133.24,7.504]
[1742411981392,7.5021,133.28,133.23,7.5046]
[1742411981783,55.42998101,133.33,133.22,64.25166252]
[1742411982285,0.05379593,133.29,133.26,0.05033175]
[1742411982588,7.5026,133.28,133.26,0.05033175]
[1742411982992,0.05379593,133.29,133.26,0.05033175]
[1742411983186,7.5024,133.28,133.26,0.05033175]
[1742411983386,0.05379593,133.29,133.26,0.05033175]
[1742411983687,7.5026,133.27,133.26,0.05033175]
[1742411983890,3.9111,133.28,133.22,34.52]
[1742411984280,4.1291,133.27,133.22,34.52]
[1742411984886,0.05123314,133.26,133.23,0.05067238]
[1742411985389,7.55453314,133.26,133.23,0.05067238]
[1742411985587,0.05123314,133.26,133.23,7.55507238]
[1742411986588,7.503,133.27,133.23,0.05067238]
[1742411986795,55.42998101,133.39,133.24,89.92998101]
[1742411987085,7.4996,133.33,133.26,7.5029]
[1742411987486,7.5007,133.31,133.24,7.5041]
[1742411987693,7.5007,133.31,133.25,34.5]
[1742411987888,0.04749151,133.29,133.26,0.04841769]
[1742411988088,0.04749151,133.29,133.25,42.0035]
[1742411988289,0.04749151,133.29,133.26,0.05016228]
[1742411990087,0.04749151,133.29,133.2,85.05379198]
[1742411990393,34.48,133.28,133.21,7.5057]
[1742411990595,4.0678,133.27,133.2,85.05379198]
[1742411991186,0.05471738,133.25,133.22,0.05484751]
[1742411991392,0.05471738,133.25,133.23,55.32212946]
[1742411991789,0.05471738,133.25,133.23,89.80212946]
[1742411992091,0.05471738,133.25,133.24,7.5043]
[1742411992792,0.05471738,133.25,133.23,89.80212946]
[1742411993090,0.05471738,133.25,133.23,34.48]
[1742411994495,7.5029,133.27,133.23,34.48]
[1742411994689,12.2274,133.31,133.2,119.53379198]
[1742411995086,55.32212946,133.3,133.2,29.73166252]
[1742411995693,7.5041,133.25,133.24,0.05527994]
[1742411995996,7.42669963,133.25,133.24,0.05527994]
[1742411997691,0.04831749,133.26,133.18,29.73166252]
[1742411997887,7.9192,133.24,133.18,29.73166252]
[1742411998097,7.5069,133.2,133.18,29.73166252]
[1742411998291,7.5069,133.2,133.19,79.44303822]
[1742411998492,34.46,133.23,133.19,79.44303822]
[1742411998791,0.05283415,133.22,133.2,0.05623179]
[1742412000393,34.46,133.26,133.2,0.05623179]
[1742412000991,34.46,133.26,133.18,16.95446223]
[1742412001202,55.32212946,133.24,133.19,21.93136512]
[1742412001391,55.32212946,133.21,133.17,146.13581327]
[1742412001697,34.46,133.2,133.17,146.13581327]
[1742412001892,34.46,133.23,133.17,146.13581327]
[1742412002295,0.05647388,133.21,133.19,0.04842254]
[1742412004397,55.37860334,133.21,133.1,41.9719]
[1742412004596,55.32212946,133.21,133.1,38.5594]
[1742412004796,280.52212946,133.21,133.1,38.5594]
[1742412005295,7.5086,133.17,133.1,38.5594]
[1742412005496,7.5086,133.17,133.1,46.0713]
[1742412005696,7.55996373,133.17,133.14,0.04789793]
[1742412005896,0.05136373,133.17,133.14,7.55749793]
[1742412006098,0.05136373,133.17,133.14,0.04789793]
[1742412006298,0.05136373,133.17,133.14,34.50789793]
[1742412006600,0.05136373,133.17,133.16,7.5088]
[1742412007203,34.46,133.23,133.18,7.5071]
[1742412007503,34.46,133.23,133.16,4.2556]
[1742412007690,4.1117,133.25,133.21,7.506]
[1742412007892,225.24,133.27,133.2,55.32212946]
[1742412008498,0.05352439,133.25,133.22,7.55565723]